Workbook

Sheet ProTurtleRu ШАГ #0 Тест
B3: НОМЕР | C3: В ДАТУ | D3: ДАТА | E3: ТУРНИР | F3: БАЙ-ИН | G3: МЕСТО | H3: WIN | I3: БАЙ-ИН (без ком) | J3: КОМИССИЯ | K3: БАЙ-ИН | L3: ВЫПЛАТА | M3: Результат | N3: CASH FLOW
N4: 10
B5: 1 | D5: 01/15/2016 | E5: $0.10 NL Hold'em [360 Players, Turbo] | F5: $0.09+$0.01 | G5: 12/360 | H5: $0.51 | I5: 0.09 | J5: 0.01 | K5: =I5+J5 -> 0.1 | L5: 0.51 | M5: =L5-K5 -> 0.41 | N5: =N4+M5 -> 10.41
B6: 2 | D6: 01/15/2016 | E6: $0.10 NL Hold'em [360 Players, Turbo] | F6: $0.09+$0.01 | G6: 101/360 | H6: $0 | I6: 0.09 | J6: 0.01 | K6: =I6+J6 -> 0.1 | L6: 0 | M6: =L6-K6 -> -0.1 | N6: =N5+M6 -> 10.31
B7: 3 | D7: 01/15/2016 | E7: $0.10 NL Hold'em [360 Players, Turbo] | F7: $0.09+$0.01 | G7: 354/360 | H7: $0 | I7: 0.09 | J7: 0.01 | K7: 0.1 | L7: 0 | M7: -0.1 | N7: =N6+M7 -> 10.21
B8: 4 | D8: 01/15/2016 | E8: $0.10 NL Hold'em [360 Players, Turbo] | F8: $0.09+$0.01 | G8: 198/360 | H8: $0 | I8: 0.09 | J8: 0.01 | K8: 0.1 | L8: 0 | M8: -0.1 | N8: =N7+M8 -> 10.11
B9: 5 | C9: 5 | D9: 01/15/2016 | E9: $0.10 NL Hold'em [360 Players, Turbo] | F9: $0.09+$0.01 | G9: 108/360 | H9: $0 | I9: 0.09 | J9: 0.01 | K9: 0.1 | L9: 0 | M9: -0.1 | N9: 10.01
B10: 6 | D10: 01/17/2016 | E10: $0.10 NL Hold'em [360 Players, Turbo] | F10: $0.09+$0.01 | G10: 11/360 | H10: $0.51 | I10: 0.09 | J10: 0.01 | K10: 0.1 | L10: 0.51 | M10: 0.41 | N10: 10.42
B11: 7 | D11: 01/17/2016 | E11: $0.10 NL Hold'em [360 Players, Turbo] | F11: $0.09+$0.01 | G11: 100/360 | H11: $0 | I11: 0.09 | J11: 0.01 | K11: 0.1 | L11: 0 | M11: -0.1 | N11: 10.32
B12: 8 | D12: 01/17/2016 | E12: $0.10 NL Hold'em [360 Players, Turbo] | F12: $0.09+$0.01 | G12: 97/360 | H12: $0 | I12: 0.09 | J12: 0.01 | K12: 0.1 | L12: 0 | M12: -0.1 | N12: 10.22
B13: 9 | D13: 01/17/2016 | E13: $0.10 NL Hold'em [360 Players, Turbo] | F13: $0.09+$0.01 | G13: 283/360 | H13: $0 | I13: 0.09 | J13: 0.01 | K13: 0.1 | L13: 0 | M13: -0.1 | N13: 10.12
B14: 10 | D14: 01/17/2016 | E14: $0.10 NL Hold'em [360 Players, Turbo] | F14: $0.09+$0.01 | G14: 215/360 | H14: $0 | I14: 0.09 | J14: 0.01 | K14: 0.1 | L14: 0 | M14: -0.1 | N14: 10.02
B15: 11 | C15: 6 | D15: 01/17/2016 | E15: $0.10 NL Hold'em [360 Players, Turbo] | F15: $0.09+$0.01 | G15: 159/360 | H15: $0 | I15: 0.09 | J15: 0.01 | K15: 0.1 | L15: 0 | M15: -0.1 | N15: 9.92
B16: 12 | D16: 01/18/2016 | E16: $0.10 NL Hold'em [360 Players, Turbo] | F16: $0.09+$0.01 | G16: 107/360 | H16: $0 | I16: 0.09 | J16: 0.01 | K16: 0.1 | L16: 0 | M16: -0.1 | N16: 9.82
B17: 13 | D17: 01/18/2016 | E17: $0.10 NL Hold'em [360 Players, Turbo] | F17: $0.09+$0.01 | G17: 357/360 | H17: $0 | I17: 0.09 | J17: 0.01 | K17: 0.1 | L17: 0 | M17: -0.1 | N17: 9.72
B18: 14 | D18: 01/18/2016 | E18: $0.10 NL Hold'em [360 Players, Turbo] | F18: $0.09+$0.01 | G18: 121/360 | H18: $0 | I18: 0.09 | J18: 0.01 | K18: 0.1 | L18: 0 | M18: -0.1 | N18: 9.62
B19: 15 | D19: 01/18/2016 | E19: $0.10 NL Hold'em [360 Players, Turbo] | F19: $0.09+$0.01 | G19: 207/360 | H19: $0 | I19: 0.09 | J19: 0.01 | K19: 0.1 | L19: 0 | M19: -0.1 | N19: 9.52
B20: 16 | D20: 01/18/2016 | E20: $0.10 NL Hold'em [360 Players, Turbo] | F20: $0.09+$0.01 | G20: 146/360 | H20: $0 | I20: 0.09 | J20: 0.01 | K20: 0.1 | L20: 0 | M20: -0.1 | N20: 9.42
B21: 17 | D21: 01/18/2016 | E21: $0.10 NL Hold'em [360 Players, Turbo] | F21: $0.09+$0.01 | G21: 39/360 | H21: $0 | I21: 0.09 | J21: 0.01 | K21: 0.1 | L21: 0 | M21: -0.1 | N21: 9.32
B22: 18 | D22: 01/18/2016 | E22: $0.10 NL Hold'em [360 Players, Turbo] | F22: $0.09+$0.01 | G22: 5/360 | H22: $1.87 | I22: 0.09 | J22: 0.01 | K22: 0.1 | L22: 1.87 | M22: 1.77 | N22: 11.09
B23: 19 | D23: 01/18/2016 | E23: $0.10 NL Hold'em [360 Players, Turbo] | F23: $0.09+$0.01 | G23: 185/360 | H23: $0 | I23: 0.09 | J23: 0.01 | K23: 0.1 | L23: 0 | M23: -0.1 | N23: 10.99
B24: 20 | D24: 01/18/2016 | E24: $0.10 NL Hold'em [360 Players, Turbo] | F24: $0.09+$0.01 | G24: 193/360 | H24: $0 | I24: 0.09 | J24: 0.01 | K24: 0.1 | L24: 0 | M24: -0.1 | N24: 10.89
B25: 21 | D25: 01/18/2016 | E25: $0.10 NL Hold'em [360 Players, Turbo] | F25: $0.09+$0.01 | G25: 87/360 | H25: $0 | I25: 0.09 | J25: 0.01 | K25: 0.1 | L25: 0 | M25: -0.1 | N25: 10.79
B26: 22 | C26: 11 | D26: 01/18/2016 | E26: $0.10 NL Hold'em [360 Players, Turbo] | F26: $0.09+$0.01 | G26: 331/360 | H26: $0 | I26: 0.09 | J26: 0.01 | K26: 0.1 | L26: 0 | M26: -0.1 | N26: 10.69
B27: 23 | D27: 01/20/2016 | E27: $0.10 NL Hold'em [360 Players, Turbo] | F27: $0.09+$0.01 | G27: 120/360 | H27: $0 | I27: 0.09 | J27: 0.01 | K27: 0.1 | L27: 0 | M27: -0.1 | N27: 10.59
B28: 24 | D28: 01/20/2016 | E28: $0.10 NL Hold'em [360 Players, Turbo] | F28: $0.09+$0.01 | G28: 73/360 | H28: $0 | I28: 0.09 | J28: 0.01 | K28: 0.1 | L28: 0 | M28: -0.1 | N28: 10.49
B29: 25 | D29: 01/20/2016 | E29: $0.10 NL Hold'em [360 Players, Turbo] | F29: $0.09+$0.01 | G29: 40/360 | H29: $0 | I29: 0.09 | J29: 0.01 | K29: 0.1 | L29: 0 | M29: -0.1 | N29: 10.39
B30: 26 | D30: 01/20/2016 | E30: $0.10 NL Hold'em [360 Players, Turbo] | F30: $0.09+$0.01 | G30: 202/360 | H30: $0 | I30: 0.09 | J30: 0.01 | K30: 0.1 | L30: 0 | M30: -0.1 | N30: 10.29
B31: 27 | D31: 01/20/2016 | E31: $0.10 NL Hold'em [360 Players, Turbo] | F31: $0.09+$0.01 | G31: 66/360 | H31: $0 | I31: 0.09 | J31: 0.01 | K31: 0.1 | L31: 0 | M31: -0.1 | N31: 10.19
B32: 28 | D32: 01/20/2016 | E32: $0.10 NL Hold'em [360 Players, Turbo] | F32: $0.09+$0.01 | G32: 353/360 | H32: $0 | I32: 0.09 | J32: 0.01 | K32: 0.1 | L32: 0 | M32: -0.1 | N32: 10.09
B33: 29 | D33: 01/20/2016 | E33: $0.10 NL Hold'em [360 Players, Turbo] | F33: $0.09+$0.01 | G33: 212/360 | H33: $0 | I33: 0.09 | J33: 0.01 | K33: 0.1 | L33: 0 | M33: -0.1 | N33: 9.99
B34: 30 | C34: 8 | D34: 01/20/2016 | E34: $0.10 NL Hold'em [360 Players, Turbo] | F34: $0.09+$0.01 | G34: 102/360 | H34: $0 | I34: 0.09 | J34: 0.01 | K34: 0.1 | L34: 0 | M34: -0.1 | N34: 9.89
B35: 31 | D35: 01/21/2016 | E35: $0.10 NL Hold'em [360 Players, Turbo] | F35: $0.09+$0.01 | G35: 61/360 | H35: $0 | I35: 0.09 | J35: 0.01 | K35: 0.1 | L35: 0 | M35: -0.1 | N35: 9.79
B36: 32 | D36: 01/21/2016 | E36: $0.10 NL Hold'em [360 Players, Turbo] | F36: $0.09+$0.01 | G36: 197/360 | H36: $0 | I36: 0.09 | J36: 0.01 | K36: 0.1 | L36: 0 | M36: -0.1 | N36: 9.69
B37: 33 | D37: 01/21/2016 | E37: $0.10 NL Hold'em [360 Players, Turbo] | F37: $0.09+$0.01 | G37: 118/360 | H37: $0 | I37: 0.09 | J37: 0.01 | K37: 0.1 | L37: 0 | M37: -0.1 | N37: 9.59
B38: 34 | D38: 01/21/2016 | E38: $0.10 NL Hold'em [360 Players, Turbo] | F38: $0.09+$0.01 | G38: 160/360 | H38: $0 | I38: 0.09 | J38: 0.01 | K38: 0.1 | L38: 0 | M38: -0.1 | N38: 9.49
B39: 35 | D39: 01/21/2016 | E39: $0.10 NL Hold'em [360 Players, Turbo] | F39: $0.09+$0.01 | G39: 115/360 | H39: $0 | I39: 0.09 | J39: 0.01 | K39: 0.1 | L39: 0 | M39: -0.1 | N39: 9.39
B40: 36 | D40: 01/21/2016 | E40: $0.10 NL Hold'em [360 Players, Turbo] | F40: $0.09+$0.01 | G40: 65/360 | H40: $0 | I40: 0.09 | J40: 0.01 | K40: 0.1 | L40: 0 | M40: -0.1 | N40: 9.29
B41: 37 | D41: 01/21/2016 | E41: $0.10 NL Hold'em [360 Players, Turbo] | F41: $0.09+$0.01 | G41: 135/360 | H41: $0 | I41: 0.09 | J41: 0.01 | K41: 0.1 | L41: 0 | M41: -0.1 | N41: 9.19
B42: 38 | C42: 8 | D42: 01/21/2016 | E42: $0.10 NL Hold'em [360 Players, Turbo] | F42: $0.09+$0.01 | G42: 269/360 | H42: $0 | I42: 0.09 | J42: 0.01 | K42: 0.1 | L42: 0 | M42: -0.1 | N42: 9.09
B43: 39 | D43: 01/23/2016 | E43: $0.10 NL Hold'em [360 Players, Turbo] | F43: $0.09+$0.01 | G43: 188/360 | H43: $0 | I43: 0.09 | J43: 0.01 | K43: 0.1 | L43: 0 | M43: -0.1 | N43: 8.99
B44: 40 | D44: 01/23/2016 | E44: $0.10 NL Hold'em [360 Players, Turbo] | F44: $0.09+$0.01 | G44: 289/360 | H44: $0 | I44: 0.09 | J44: 0.01 | K44: 0.1 | L44: 0 | M44: -0.1 | N44: 8.89
B45: 41 | D45: 01/23/2016 | E45: $0.10 NL Hold'em [360 Players, Turbo] | F45: $0.09+$0.01 | G45: 325/360 | H45: $0 | I45: 0.09 | J45: 0.01 | K45: 0.1 | L45: 0 | M45: -0.1 | N45: 8.79
B46: 42 | D46: 01/23/2016 | E46: $0.10 NL Hold'em [360 Players, Turbo] | F46: $0.09+$0.01 | G46: 130/360 | H46: $0 | I46: 0.09 | J46: 0.01 | K46: 0.1 | L46: 0 | M46: -0.1 | N46: 8.69
B47: 43 | D47: 01/23/2016 | E47: $0.10 NL Hold'em [360 Players, Turbo] | F47: $0.09+$0.01 | G47: 37/360 | H47: $0 | I47: 0.09 | J47: 0.01 | K47: 0.1 | L47: 0 | M47: -0.1 | N47: 8.59
B48: 44 | D48: 01/23/2016 | E48: $0.10 NL Hold'em [360 Players, Turbo] | F48: $0.09+$0.01 | G48: 135/360 | H48: $0 | I48: 0.09 | J48: 0.01 | K48: 0.1 | L48: 0 | M48: -0.1 | N48: 8.49
B49: 45 | D49: 01/23/2016 | E49: $0.10 NL Hold'em [360 Players, Turbo] | F49: $0.09+$0.01 | G49: 252/360 | H49: $0 | I49: 0.09 | J49: 0.01 | K49: 0.1 | L49: 0 | M49: -0.1 | N49: 8.39
B50: 46 | D50: 01/23/2016 | E50: $0.10 NL Hold'em [360 Players, Turbo] | F50: $0.09+$0.01 | G50: 149/360 | H50: $0 | I50: 0.09 | J50: 0.01 | K50: 0.1 | L50: 0 | M50: -0.1 | N50: 8.29
B51: 47 | D51: 01/23/2016 | E51: $0.10 NL Hold'em [360 Players, Turbo] | F51: $0.09+$0.01 | G51: 234/360 | H51: $0 | I51: 0.09 | J51: 0.01 | K51: 0.1 | L51: 0 | M51: -0.1 | N51: 8.19
B52: 48 | D52: 01/23/2016 | E52: $0.10 NL Hold'em [360 Players, Turbo] | F52: $0.09+$0.01 | G52: 238/360 | H52: $0 | I52: 0.09 | J52: 0.01 | K52: 0.1 | L52: 0 | M52: -0.1 | N52: 8.09
B53: 49 | D53: 01/23/2016 | E53: $0.10 NL Hold'em [360 Players, Turbo] | F53: $0.09+$0.01 | G53: 248/360 | H53: $0 | I53: 0.09 | J53: 0.01 | K53: 0.1 | L53: 0 | M53: -0.1 | N53: 7.99
B54: 50 | D54: 01/23/2016 | E54: $0.10 NL Hold'em [360 Players, Turbo] | F54: $0.09+$0.01 | G54: 328/360 | H54: $0 | I54: 0.09 | J54: 0.01 | K54: 0.1 | L54: 0 | M54: -0.1 | N54: 7.89
B55: 51 | D55: 01/23/2016 | E55: $0.10 NL Hold'em [360 Players, Turbo] | F55: $0.09+$0.01 | G55: 309/360 | H55: $0 | I55: 0.09 | J55: 0.01 | K55: 0.1 | L55: 0 | M55: -0.1 | N55: 7.79
B56: 52 | D56: 01/23/2016 | E56: $0.10 NL Hold'em [360 Players, Turbo] | F56: $0.09+$0.01 | G56: 3/360 | H56: $3.66 | I56: 0.09 | J56: 0.01 | K56: 0.1 | L56: 3.66 | M56: 3.56 | N56: 11.35
B57: 53 | D57: 01/23/2016 | E57: $0.10 NL Hold'em [360 Players, Turbo] | F57: $0.09+$0.01 | G57: 348/360 | H57: $0 | I57: 0.09 | J57: 0.01 | K57: 0.1 | L57: 0 | M57: -0.1 | N57: 11.25
B58: 54 | D58: 01/23/2016 | E58: $0.10 NL Hold'em [360 Players, Turbo] | F58: $0.09+$0.01 | G58: 5/360 | H58: $1.87 | I58: 0.09 | J58: 0.01 | K58: 0.1 | L58: 1.87 | M58: 1.77 | N58: 13.02
B59: 55 | D59: 01/23/2016 | E59: $0.10 NL Hold'em [360 Players, Turbo] | F59: $0.09+$0.01 | G59: 265/360 | H59: $0 | I59: 0.09 | J59: 0.01 | K59: 0.1 | L59: 0 | M59: -0.1 | N59: 12.92
B60: 56 | D60: 01/23/2016 | E60: $0.10 NL Hold'em [360 Players, Turbo] | F60: $0.09+$0.01 | G60: 277/360 | H60: $0 | I60: 0.09 | J60: 0.01 | K60: 0.1 | L60: 0 | M60: -0.1 | N60: 12.82
B61: 57 | D61: 01/23/2016 | E61: $0.10 NL Hold'em [360 Players, Turbo] | F61: $0.09+$0.01 | G61: 117/360 | H61: $0 | I61: 0.09 | J61: 0.01 | K61: 0.1 | L61: 0 | M61: -0.1 | N61: 12.72
B62: 58 | D62: 01/23/2016 | E62: $0.10 NL Hold'em [360 Players, Turbo] | F62: $0.09+$0.01 | G62: 16/360 | H62: $0.35 | I62: 0.09 | J62: 0.01 | K62: 0.1 | L62: 0.35 | M62: 0.25 | N62: 12.97
B63: 59 | D63: 01/23/2016 | E63: $0.10 NL Hold'em [360 Players, Turbo] | F63: $0.09+$0.01 | G63: 216/360 | H63: $0 | I63: 0.09 | J63: 0.01 | K63: 0.1 | L63: 0 | M63: -0.1 | N63: 12.87
B64: 60 | D64: 01/23/2016 | E64: $0.10 NL Hold'em [360 Players, Turbo] | F64: $0.09+$0.01 | G64: 235/360 | H64: $0 | I64: 0.09 | J64: 0.01 | K64: 0.1 | L64: 0 | M64: -0.1 | N64: 12.77
B65: 61 | D65: 01/23/2016 | E65: $0.10 NL Hold'em [360 Players, Turbo] | F65: $0.09+$0.01 | G65: 249/360 | H65: $0 | I65: 0.09 | J65: 0.01 | K65: 0.1 | L65: 0 | M65: -0.1 | N65: 12.67
B66: 62 | D66: 01/23/2016 | E66: $0.10 NL Hold'em [360 Players, Turbo] | F66: $0.09+$0.01 | G66: 215/360 | H66: $0 | I66: 0.09 | J66: 0.01 | K66: 0.1 | L66: 0 | M66: -0.1 | N66: 12.57
B67: 63 | D67: 01/23/2016 | E67: $0.10 NL Hold'em [360 Players, Turbo] | F67: $0.09+$0.01 | G67: 276/360 | H67: $0 | I67: 0.09 | J67: 0.01 | K67: 0.1 | L67: 0 | M67: -0.1 | N67: 12.47
B68: 64 | D68: 01/23/2016 | E68: $0.10 NL Hold'em [360 Players, Turbo] | F68: $0.09+$0.01 | G68: 244/360 | H68: $0 | I68: 0.09 | J68: 0.01 | K68: 0.1 | L68: 0 | M68: -0.1 | N68: 12.37
B69: 65 | D69: 01/23/2016 | E69: $0.10 NL Hold'em [360 Players, Turbo] | F69: $0.09+$0.01 | G69: 352/360 | H69: $0 | I69: 0.09 | J69: 0.01 | K69: 0.1 | L69: 0 | M69: -0.1 | N69: 12.27
B70: 66 | D70: 01/23/2016 | E70: $0.10 NL Hold'em [360 Players, Turbo] | F70: $0.09+$0.01 | G70: 336/360 | H70: $0 | I70: 0.09 | J70: 0.01 | K70: =I70+J70 -> 0.1 | L70: 0 | M70: =L70-K70 -> -0.1 | N70: 12.17
B71: 67 | D71: 01/23/2016 | E71: $0.10 NL Hold'em [360 Players, Turbo] | F71: $0.09+$0.01 | G71: 332/360 | H71: $0 | I71: 0.09 | J71: 0.01 | K71: 0.1 | L71: 0 | M71: -0.1 | N71: 12.07
B72: 68 | D72: 01/23/2016 | E72: $0.10 NL Hold'em [360 Players, Turbo] | F72: $0.09+$0.01 | G72: 110/360 | H72: $0 | I72: 0.09 | J72: 0.01 | K72: 0.1 | L72: 0 | M72: -0.1 | N72: =N71+M72 -> 11.97
B73: 69 | D73: 01/23/2016 | E73: $0.10 NL Hold'em [360 Players, Turbo] | F73: $0.09+$0.01 | G73: 126/360 | H73: $0 | I73: 0.09 | J73: 0.01 | K73: 0.1 | L73: 0 | M73: -0.1 | N73: 11.87
B74: 70 | D74: 01/23/2016 | E74: $0.10 NL Hold'em [360 Players, Turbo] | F74: $0.09+$0.01 | G74: 329/360 | H74: $0 | I74: 0.09 | J74: 0.01 | K74: 0.1 | L74: 0 | M74: -0.1 | N74: 11.77
B75: 71 | D75: 01/23/2016 | E75: $0.10 NL Hold'em [360 Players, Turbo] | F75: $0.09+$0.01 | G75: 314/360 | H75: $0 | I75: 0.09 | J75: 0.01 | K75: 0.1 | L75: 0 | M75: -0.1 | N75: 11.67
B76: 72 | D76: 01/23/2016 | E76: $0.10 NL Hold'em [360 Players, Turbo] | F76: $0.09+$0.01 | G76: 213/360 | H76: $0 | I76: 0.09 | J76: 0.01 | K76: 0.1 | L76: 0 | M76: -0.1 | N76: 11.57
B77: 73 | C77: 35 | D77: 01/23/2016 | E77: $0.10 NL Hold'em [360 Players, Turbo] | F77: $0.09+$0.01 | G77: 295/360 | H77: $0 | I77: 0.09 | J77: 0.01 | K77: 0.1 | L77: 0 | M77: -0.1 | N77: 11.47
B78: 74 | D78: 01/24/2016 | E78: $0.10 NL Hold'em [360 Players, Turbo] | F78: $0.09+$0.01 | G78: 41/360 | H78: $0 | I78: 0.09 | J78: 0.01 | K78: 0.1 | L78: 0 | M78: -0.1 | N78: 11.37
B79: 75 | D79: 01/24/2016 | E79: TCOOP-17 Sat [Rd 1]: $0.11+R NLHE [3x-Turbo], 1 Seat Gtd | F79: $0.10+$0.01 | G79: 37/116 | H79: $0 | I79: 0.1 | J79: 0.01 | K79: 0.11 | L79: 0 | M79: -0.11 | N79: 11.26
B80: 76 | D80: 01/24/2016 | E80: $0.10 NL Hold'em [360 Players, Turbo] | F80: $0.09+$0.01 | G80: 100/360 | H80: $0 | I80: 0.09 | J80: 0.01 | K80: 0.1 | L80: 0 | M80: -0.1 | N80: 11.16
B81: 77 | D81: 01/24/2016 | E81: TCOOP-16 Sat [Rd 1]: $0.11+R NLHE [3x-Turbo], 1 Package Gtd | F81: $0.10+$0.01 | G81: 32/68 | H81: $0 | I81: 0.1 | J81: 0.01 | K81: 0.11 | L81: 0 | M81: -0.11 | N81: 11.05
B82: 78 | D82: 01/24/2016 | E82: TCOOP-19 [Sunday Supersonic SE] Sat [Rd 1]: $0.11+R NLHE [3x-Turbo], 1 Package Gtd | F82: $0.10+$0.01 | G82: 21/48 | H82: $0 | I82: 0.1 | J82: 0.01 | K82: 0.11 | L82: 0 | M82: -0.11 | N82: 10.94
B83: 79 | D83: 01/24/2016 | E83: $0.10 NL Hold'em [360 Players, Turbo] | F83: $0.09+$0.01 | G83: 196/360 | H83: $0 | I83: 0.09 | J83: 0.01 | K83: 0.1 | L83: 0 | M83: -0.1 | N83: 10.84
B84: 80 | D84: 01/24/2016 | E84: TCOOP-16 Sat [Rd 1]: $0.11+R NLHE [3x-Turbo], 1 Seat Gtd | F84: $0.10+$0.01 | G84: 26/77 | H84: $0 | I84: 0.1 | J84: 0.01 | K84: 0.11 | L84: 0 | M84: -0.11 | N84: 10.73
B85: 81 | D85: 01/24/2016 | E85: $0.10 NL Hold'em [360 Players, Turbo] | F85: $0.09+$0.01 | G85: 169/360 | H85: $0 | I85: 0.09 | J85: 0.01 | K85: 0.1 | L85: 0 | M85: -0.1 | N85: 10.63
B86: 82 | D86: 01/24/2016 | E86: $0.11 NL Hold'em [Turbo], $150 Gtd | F86: $0.10+$0.01 | G86: 232/1840 | H86: $0.18 | I86: 0.1 | J86: 0.01 | K86: 0.11 | L86: 0.18 | M86: 0.07 | N86: 10.7
B87: 83 | D87: 01/24/2016 | E87: The Big $1.10 Sat: $0.11 NLHE [Turbo, Deep], 15 Seats Gtd | F87: $0.10+$0.01 | G87: 80/178 | H87: $0 | I87: 0.1 | J87: 0.01 | K87: 0.11 | L87: 0 | M87: -0.11 | N87: 10.59
B88: 84 | D88: 01/24/2016 | E88: $0.10 NL Hold'em [360 Players, Turbo] | F88: $0.09+$0.01 | G88: 145/360 | H88: $0 | I88: 0.09 | J88: 0.01 | K88: 0.1 | L88: 0 | M88: -0.1 | N88: 10.49
B89: 85 | D89: 01/24/2016 | E89: TCOOP-16 Sat [Rd 1]: $0.11+R NLHE [3x-Turbo], 1 Seat Gtd | F89: $0.10+$0.01 | G89: 22/76 | H89: $0 | I89: 0.1 | J89: 0.01 | K89: 0.11 | L89: 0 | M89: -0.11 | N89: 10.38
B90: 86 | D90: 01/24/2016 | E90: The Big $1.10 Sat: $0.11 NLHE [Turbo, Deep], 15 Seats Gtd | F90: $0.10+$0.01 | G90: 71/172 | H90: $0 | I90: 0.1 | J90: 0.01 | K90: 0.11 | L90: 0 | M90: -0.11 | N90: 10.27
B91: 87 | D91: 01/24/2016 | E91: $0.10 NL Hold'em [360 Players, Turbo] | F91: $0.09+$0.01 | G91: 335/360 | H91: $0 | I91: 0.09 | J91: 0.01 | K91: 0.1 | L91: 0 | M91: -0.1 | N91: 10.17
B92: 88 | D92: 01/24/2016 | E92: The Big $1.10 Sat: $0.11 NLHE [Turbo], 5 Seats Gtd | F92: $0.10+$0.01 | G92: 34/52 | H92: $0 | I92: 0.1 | J92: 0.01 | K92: 0.11 | L92: 0 | M92: -0.11 | N92: 10.06
B93: 89 | D93: 01/24/2016 | E93: $0.10 NL Hold'em [360 Players, Turbo] | F93: $0.09+$0.01 | G93: 49/360 | H93: $0 | I93: 0.09 | J93: 0.01 | K93: 0.1 | L93: 0 | M93: -0.1 | N93: 9.96
B94: 90 | D94: 01/24/2016 | E94: $0.10 NL Hold'em [360 Players, Turbo] | F94: $0.09+$0.01 | G94: 242/360 | H94: $0 | I94: 0.09 | J94: 0.01 | K94: 0.1 | L94: 0 | M94: -0.1 | N94: 9.86
B95: 91 | D95: 01/24/2016 | E95: $0.10 NL Hold'em [360 Players, Turbo] | F95: $0.09+$0.01 | G95: 272/360 | H95: $0 | I95: 0.09 | J95: 0.01 | K95: 0.1 | L95: 0 | M95: -0.1 | N95: 9.76
B96: 92 | D96: 01/24/2016 | E96: $0.10 NL Hold'em [360 Players, Turbo] | F96: $0.09+$0.01 | G96: 29/360 | H96: $0.24 | I96: 0.09 | J96: 0.01 | K96: 0.1 | L96: 0.24 | M96: 0.14 | N96: 9.9
B97: 93 | D97: 01/24/2016 | E97: $0.10 NL Hold'em [360 Players, Turbo] | F97: $0.09+$0.01 | G97: 16/360 | H97: $0.35 | I97: 0.09 | J97: 0.01 | K97: 0.1 | L97: 0.35 | M97: 0.25 | N97: 10.15
B98: 94 | D98: 01/24/2016 | E98: $0.10 NL Hold'em [360 Players, Turbo] | F98: $0.09+$0.01 | G98: 209/360 | H98: $0 | I98: 0.09 | J98: 0.01 | K98: 0.1 | L98: 0 | M98: -0.1 | N98: 10.05
B99: 95 | D99: 01/24/2016 | E99: $0.10 NL Hold'em [360 Players, Turbo] | F99: $0.09+$0.01 | G99: 203/360 | H99: $0 | I99: 0.09 | J99: 0.01 | K99: 0.1 | L99: 0 | M99: -0.1 | N99: 9.95
B100: 96 | D100: 01/24/2016 | E100: $0.10 NL Hold'em [360 Players, Turbo] | F100: $0.09+$0.01 | G100: 195/360 | H100: $0 | I100: 0.09 | J100: 0.01 | K100: 0.1 | L100: 0 | M100: -0.1 | N100: 9.85
B101: 97 | D101: 01/24/2016 | E101: $0.10 NL Hold'em [360 Players, Turbo] | F101: $0.09+$0.01 | G101: 312/360 | H101: $0 | I101: 0.09 | J101: 0.01 | K101: 0.1 | L101: 0 | M101: -0.1 | N101: 9.75
B102: 98 | D102: 01/24/2016 | E102: $0.10 NL Hold'em [360 Players, Turbo] | F102: $0.09+$0.01 | G102: 124/360 | H102: $0 | I102: 0.09 | J102: 0.01 | K102: 0.1 | L102: 0 | M102: -0.1 | N102: 9.65
B103: 99 | D103: 01/24/2016 | E103: $0.10 NL Hold'em [360 Players, Turbo] | F103: $0.09+$0.01 | G103: 141/360 | H103: $0 | I103: 0.09 | J103: 0.01 | K103: 0.1 | L103: 0 | M103: -0.1 | N103: 9.55
B104: 100 | C104: 27 | D104: 01/24/2016 | E104: $0.10 NL Hold'em [360 Players, Turbo] | F104: $0.09+$0.01 | G104: 146/360 | H104: $0 | I104: 0.09 | J104: 0.01 | K104: 0.1 | L104: 0 | M104: -0.1 | N104: 9.45
I105: =SUM(I5:I104) -> 9.09 | J105: 1 | K105: =SUM(K5:K104) -> 10.09 | L105: =SUM(L5:L104) -> 9.54 | M105: -0.55
